bitfinex/quotes_BTCUSD_20240611
["timestamp","ask_amount","ask_price","bid_price","bid_amount"]
[1718097270689,0.80257208,67552.0,67551.0,0.000946]
[1718097270893,0.82198169,67552.0,67551.0,0.000946]
[1718097274345,0.88120469,67552.0,67551.0,0.000946]
[1718097274559,1.08120469,67552.0,67551.0,0.000946]
[1718097274772,1.22711961,67552.0,67551.0,0.000946]
[1718097274981,1.57582705,67552.0,67551.0,0.000946]
[1718097275185,1.69128149,67552.0,67551.0,0.000946]
[1718097275429,1.77751547,67552.0,67551.0,0.000946]
[1718097275653,1.82170483,67552.0,67551.0,0.000946]
[1718097276493,1.77751547,67552.0,67551.0,0.000946]
[1718097276714,1.9078354,67552.0,67551.0,0.000946]
[1718097276918,1.93802476,67552.0,67551.0,0.000946]
[1718097277159,1.9078354,67552.0,67551.0,0.000946]
[1718097277374,1.9218354,67552.0,67551.0,0.000946]
[1718097277602,1.8938354,67552.0,67551.0,0.000946]
[1718097278010,1.9218354,67552.0,67551.0,0.000946]
[1718097279832,1.83560142,67552.0,67551.0,0.000946]
[1718097280406,1.92378208,67552.0,67551.0,0.000946]
[1718097280722,1.92378193,67552.0,67551.0,0.000946]
[1718097280925,1.83560142,67552.0,67551.0,0.000946]
[1718097282200,1.9236839,67552.0,67551.0,0.000946]
[1718097283311,1.9096839,67552.0,67551.0,0.000946]
[1718097284534,1.9236839,67552.0,67551.0,0.000946]
[1718097286454,1.23796761,67541.0,67540.0,0.0075604]
[1718097286671,1.67992453,67541.0,67540.0,0.0075604]
[1718097287335,1.47992453,67541.0,67540.0,0.0075604]
[1718097287738,1.50792453,67541.0,67540.0,0.0075604]
[1718097287948,1.70792453,67541.0,67540.0,0.0075604]
[1718097288194,2.00404053,67541.0,67540.0,0.0075604]
[1718097288637,1.80404053,67541.0,67540.0,0.0075604]
[1718097288852,2.00404053,67541.0,67540.0,0.0075604]
[1718097289066,1.80404053,67541.0,67540.0,0.0075604]
[1718097289279,1.71824053,67541.0,67540.0,0.0075604]
[1718097289506,1.23742453,67541.0,67540.0,0.0075604]
[1718097289720,1.02862453,67541.0,67540.0,0.0075604]
[1718097289923,1.11442453,67541.0,67540.0,0.0075604]
[1718097290364,1.09501492,67541.0,67540.0,0.0075604]
[1718097290581,1.21442453,67541.0,67540.0,0.0075604]
[1718097290804,1.21476218,67541.0,67540.0,0.0075604]
[1718097298480,1.96679811,67541.0,67540.0,0.0075604]
[1718097298688,2.14699811,67541.0,67540.0,0.0075604]
[1718097298904,2.25135307,67541.0,67540.0,0.0075604]
[1718097300478,2.54600615,67541.0,67540.0,0.0075604]
[1718097300899,2.64600615,67541.0,67540.0,0.0075604]
[1718097301098,2.73072898,67541.0,67540.0,0.0075604]
[1718097301563,2.71527693,67541.0,67540.0,0.0075604]
[1718097301797,2.71672898,67541.0,67540.0,0.0075604]
[1718097302030,2.73021269,67541.0,67540.0,0.0075604]
[1718097302242,2.71621269,67541.0,67540.0,0.0075604]
[1718097303074,2.73021269,67541.0,67540.0,0.0075604]
[1718097303504,2.71621269,67541.0,67540.0,0.0075604]
[1718097303879,2.73021269,67541.0,67540.0,0.0075604]
[1718097304393,2.72821916,67541.0,67540.0,0.0075604]
[1718097305042,2.79450923,67541.0,67540.0,0.0075604]
[1718097305556,2.72821916,67541.0,67540.0,0.0075604]
[1718097306002,2.72821916,67541.0,67539.0,0.005]
[1718097306003,1.63020961,67540.0,67539.0,0.005]
[1718097306224,1.63020961,67540.0,67523.0,0.009427]
[1718097306225,1.13409661,67539.0,67538.0,0.005]
[1718097306438,1.76034154,67539.0,67538.0,0.005]
[1718097306673,2.01110061,67539.0,67538.0,0.005]
[1718097306899,2.16622296,67539.0,67538.0,0.005]
[1718097307332,2.25462846,67539.0,67538.0,0.005]
[1718097307539,0.75917128,67524.0,67523.0,0.009427]
[1718097307747,0.89241493,67524.0,67523.0,0.009427]
[1718097307954,0.96797936,67524.0,67523.0,0.009427]
[1718097308165,0.87878178,67524.0,67523.0,0.29205072]
[1718097308376,0.87878178,67524.0,67523.0,0.283127]
[1718097308596,0.87877065,67524.0,67523.0,0.283127]
[1718097308802,0.89277065,67524.0,67523.0,0.283127]
[1718097310503,0.99257065,67524.0,67523.0,0.283127]
[1718097310710,1.10364693,67524.0,67523.0,0.009427]
[1718097311812,1.12664693,67524.0,67523.0,0.009427]
[1718097312017,1.11264693,67524.0,67523.0,0.009427]
[1718097312646,1.02684693,67524.0,67523.0,0.009427]
[1718097312852,1.12664693,67524.0,67523.0,0.009427]
[1718097313060,1.12557065,67524.0,67523.0,0.009427]
[1718097313263,1.11264693,67524.0,67523.0,0.009427]
[1718097313477,1.11157065,67524.0,67523.0,0.009427]
[1718097313682,1.11557065,67524.0,67523.0,0.009427]
[1718097314243,1.02977065,67524.0,67523.0,0.009427]
[1718097314656,1.11557065,67524.0,67523.0,0.009427]
[1718097315240,1.12664693,67524.0,67523.0,0.009427]
[1718097315439,1.14473148,67524.0,67523.0,0.009427]
[1718097316409,1.0478552,67524.0,67523.0,0.009427]
[1718097316601,1.1336552,67524.0,67523.0,0.009427]
[1718097316860,1.0478552,67524.0,67523.0,0.009427]
[1718097317297,1.1336552,67524.0,67523.0,0.009427]
[1718097319026,1.1336552,67524.0,67523.0,0.102627]
[1718097319287,1.1436552,67524.0,67523.0,0.102627]
[1718097319508,1.1336552,67524.0,67523.0,0.102627]
[1718097319730,1.1436552,67524.0,67523.0,0.009427]
[1718097319952,1.1336552,67524.0,67523.0,0.009427]
[1718097320470,1.1436552,67524.0,67523.0,0.009427]
[1718097320684,1.14473148,67524.0,67523.0,0.009427]
[1718097321314,1.1436552,67524.0,67523.0,0.009427]
[1718097322486,1.0478552,67524.0,67523.0,0.009427]
[1718097322827,1.1336552,67524.0,67523.0,0.009427]
[1718097323238,1.0478552,67524.0,67523.0,0.009427]
[1718097323649,1.06330725,67524.0,67523.0,0.009427]
[1718097323859,1.14910725,67524.0,67523.0,0.009427]
[1718097324109,1.23466529,67524.0,67523.0,0.009427]
[1718097324325,1.2350005,67524.0,67523.0,0.009427]
[1718097324775,1.1492005,67524.0,67523.0,0.009427]
[1718097324993,1.1492005,67524.0,67523.0,0.294027]
[1718097325197,1.2350005,67524.0,67523.0,0.294027]
[1718097325608,1.14944246,67524.0,67523.0,0.294027]
[1718097325843,1.06364246,67524.0,67523.0,0.294027]
[1718097326463,1.1528924,67524.0,67523.0,0.294027]
[1718097326669,1.2386924,67524.0,67523.0,0.294027]
[1718097327089,1.1528924,67524.0,67523.0,0.294027]
[1718097327305,1.2386924,67524.0,67523.0,0.294027]
[1718097327512,1.2386924,67524.0,67523.0,0.30295072]
[1718097327723,0.9963558,67524.0,67523.0,0.30295072]
[1718097327936,0.75901086,67524.0,67523.0,0.30295072]
[1718097329975,0.75944825,67524.0,67523.0,0.30295072]
[1718097330830,0.75944825,67524.0,67523.0,0.31295072]
[1718097331046,0.68312235,67524.0,67523.0,0.32295072]
[1718097331474,0.68908862,67524.0,67523.0,0.32295072]
[1718097331689,0.68908862,67524.0,67523.0,0.30295072]
[1718097331896,0.68908862,67524.0,67523.0,0.39875072]
[1718097333350,0.68908862,67524.0,67523.0,0.38875072]
[1718097333557,0.68908862,67524.0,67523.0,0.30295072]
[1718097334192,0.68908862,67524.0,67523.0,0.009427]
[1718097334627,0.76564735,67524.0,67523.0,0.009427]
[1718097335275,0.89864735,67524.0,67523.0,0.009427]
[1718097335501,0.89972363,67524.0,67523.0,0.009427]
[1718097335976,0.88864735,67524.0,67523.0,0.009427]
[1718097336958,0.89864735,67524.0,67523.0,0.009427]
[1718097337396,0.88864735,67524.0,67523.0,0.009427]
[1718097337632,0.97444735,67524.0,67523.0,0.009427]
[1718097339635,0.88864735,67524.0,67523.0,0.009427]
[1718097340149,0.76564735,67524.0,67523.0,0.009427]
[1718097340355,0.76564735,67524.0,67523.0,0.29205072]
[1718097341408,0.76564735,67524.0,67523.0,0.283127]
[1718097342034,0.76484504,67524.0,67523.0,0.283127]
[1718097342460,0.76484504,67524.0,67523.0,0.106827]
[1718097342704,0.76484504,67524.0,67523.0,0.009427]
[1718097342928,0.86116143,67524.0,67523.0,0.009427]
[1718097343138,0.90635794,67524.0,67523.0,0.009427]
[1718097343611,0.91635794,67524.0,67523.0,0.009427]
[1718097344517,1.04043422,67524.0,67523.0,0.009427]
[1718097344770,1.08902143,67524.0,67523.0,0.009427]
[1718097345234,0.98502143,67524.0,67523.0,0.009427]
[1718097345920,0.99502143,67524.0,67523.0,0.009427]
[1718097347005,1.14311643,67524.0,67523.0,0.009427]
[1718097347351,1.14328888,67524.0,67523.0,0.009427]
[1718097348000,1.20984654,67524.0,67523.0,0.009427]
[1718097348207,1.14328888,67524.0,67523.0,0.009427]
[1718097350617,1.14436516,67524.0,67523.0,0.009427]
[1718097350819,1.14328888,67524.0,67523.0,0.009427]
[1718097352059,1.14436516,67524.0,67523.0,0.009427]
[1718097352276,1.14328888,67524.0,67523.0,0.009427]
[1718097354821,1.13328888,67524.0,67523.0,0.009427]
[1718097355034,1.21908888,67524.0,67523.0,0.009427]
[1718097355570,1.22908888,67524.0,67523.0,0.009427]
[1718097357136,1.15253015,67524.0,67523.0,0.009427]
[1718097357379,1.23869601,67524.0,67523.0,0.009427]
[1718097358506,1.16195715,67524.0,67523.0,0.009427]
[1718097358738,1.23866408,67524.0,67523.0,0.009427]
[1718097358870,1.22866408,67524.0,67523.0,0.009427]
[1718097360340,1.01986408,67524.0,67523.0,0.286627]
[1718097360960,0.96774428,67524.0,67523.0,0.286627]
[1718097361161,1.06441169,67524.0,67523.0,0.286627]
[1718097361387,1.06441169,67524.0,67523.0,0.29555072]
[1718097363510,1.06441169,67524.0,67523.0,0.286627]
[1718097363737,1.06441169,67524.0,67523.0,0.29555072]
[1718097364099,1.06441169,67524.0,67523.0,0.286627]
[1718097364529,1.06340753,67524.0,67523.0,0.286627]
[1718097364735,1.25920753,67524.0,67523.0,0.009427]
[1718097364936,1.20483849,67524.0,67523.0,0.009427]
[1718097365587,1.21483849,67524.0,67523.0,0.009427]
[1718097367007,1.32765765,67524.0,67523.0,0.009427]
[1718097367210,2.35620228,67524.0,67523.0,0.009427]
[1718097367453,2.63061876,67524.0,67523.0,0.009427]
[1718097367583,2.83061876,67524.0,67523.0,0.009427]
[1718097367800,2.81661876,67524.0,67523.0,0.009427]
[1718097368059,2.9116196,67524.0,67523.0,0.009427]
[1718097368258,2.84623876,67524.0,67523.0,0.009427]
[1718097368492,2.9412396,67524.0,67523.0,0.009427]
[1718097368921,3.06096657,67524.0,67523.0,0.009427]
[1718097369120,3.07496657,67524.0,67523.0,0.009427]
[1718097369330,3.08896657,67524.0,67523.0,0.009427]
[1718097369542,2.9272396,67524.0,67523.0,0.009427]
[1718097369746,2.83223876,67524.0,67523.0,0.009427]
[1718097370172,2.84623876,67524.0,67523.0,0.009427]
[1718097370370,2.9412396,67524.0,67523.0,0.009427]
[1718097370619,2.84623876,67524.0,67523.0,0.009427]
[1718097370818,2.84623876,67524.0,67517.0,0.009427]
[1718097370819,0.68987628,67518.0,67517.0,0.009427]
[1718097371023,1.77983575,67518.0,67517.0,0.009427]
[1718097371395,1.79301395,67518.0,67517.0,0.009427]
[1718097371596,2.23611075,67518.0,67517.0,0.009427]
[1718097371929,2.15031075,67518.0,67517.0,0.009427]
[1718097372134,2.38043068,67518.0,67517.0,0.009427]
[1718097372978,2.48940424,67518.0,67517.0,0.009427]
[1718097373203,2.47540424,67518.0,67517.0,0.009427]
[1718097373682,2.40360424,67518.0,67517.0,0.009427]
[1718097373898,2.51902424,67518.0,67517.0,0.009427]
[1718097374107,2.53302424,67518.0,67517.0,0.009427]
[1718097374364,1.55543428,67513.0,67512.0,0.009405]
[1718097374579,0.55919728,67512.0,67501.0,0.000946]
[1718097374780,1.07361721,67512.0,67501.0,0.000946]
[1718097374991,1.5681953,67512.0,67501.0,0.000946]
[1718097375213,2.17207237,67512.0,67501.0,0.000946]
[1718097375420,2.26720362,67512.0,67501.0,0.000946]
[1718097375870,2.28120362,67512.0,67501.0,0.000946]
[1718097376118,2.29520362,67512.0,67501.0,0.000946]
[1718097376489,2.20007237,67512.0,67501.0,0.000946]
[1718097376921,2.11427237,67512.0,67501.0,0.000946]
[1718097377117,2.12323634,67512.0,67501.0,0.000946]
[1718097377317,2.20123761,67512.0,67501.0,0.000946]
[1718097379191,2.13427639,67512.0,67501.0,0.000946]
[1718097379423,2.22279148,67512.0,67501.0,0.000946]
[1718097379633,1.93699148,67512.0,67501.0,0.000946]
[1718097379841,1.93699148,67512.0,67508.0,0.2807]
[1718097379842,0.98481411,67512.0,67508.0,0.2807]
[1718097380043,1.07169039,67512.0,67505.0,0.1869]
[1718097380242,1.07168264,67512.0,67505.0,0.1869]
[1718097381103,1.27168264,67512.0,67505.0,0.1869]
[1718097381340,1.56792564,67512.0,67505.0,0.1869]
[1718097381985,1.56792564,67512.0,67504.0,0.0938]
[1718097382188,1.86416864,67512.0,67504.0,0.0938]
[1718097382391,1.86416864,67512.0,67502.0,0.1833]
[1718097382567,1.95178065,67512.0,67501.0,0.000946]
[1718097382812,2.30169574,67512.0,67501.0,0.000946]
[1718097382995,2.23634026,67512.0,67501.0,0.000946]
[1718097383195,2.14102069,67512.0,67501.0,0.000946]
[1718097383412,2.25163302,67512.0,67501.0,0.000946]
[1718097383589,2.2535809,67512.0,67501.0,0.000946]
[1718097383785,2.14296857,67512.0,67501.0,0.000946]
[1718097384191,2.17011905,67512.0,67501.0,0.000946]
[1718097384388,2.26549115,67512.0,67501.0,0.000946]
[1718097384598,2.17969115,67512.0,67501.0,0.000946]
[1718097384799,2.17011905,67512.0,67501.0,0.000946]
[1718097385211,2.26549115,67512.0,67501.0,0.000946]
[1718097385961,2.35395334,67512.0,67504.0,0.2819]
[1718097386157,2.15395334,67512.0,67504.0,0.2819]
[1718097386336,2.05858124,67512.0,67504.0,0.2819]
[1718097387393,2.05857124,67512.0,67504.0,0.2819]
[1718097387592,2.15394334,67512.0,67504.0,0.2819]
[1718097387818,2.15394334,67512.0,67501.0,0.000946]
[1718097387819,2.3340312,67512.0,67501.0,0.000946]
[1718097388250,2.45151635,67512.0,67501.0,0.000946]
[1718097388687,2.43751635,67512.0,67501.0,0.000946]
[1718097388899,2.42351635,67512.0,67501.0,0.000946]
[1718097389131,2.37879228,67512.0,67501.0,0.000946]
[1718097389352,2.26821678,67512.0,67501.0,0.000946]
[1718097389557,2.25421678,67512.0,67501.0,0.000946]
[1718097389786,2.36479228,67512.0,67501.0,0.000946]
[1718097389996,2.30210763,67512.0,67501.0,0.000946]
[1718097390219,2.28361111,67512.0,67501.0,0.000946]
[1718097390438,1.15172828,67508.0,67501.0,0.000946]
[1718097390687,2.0159682,67508.0,67501.0,0.000946]
[1718097390939,2.0289913,67508.0,67501.0,0.000946]
[1718097391871,2.06510271,67508.0,67501.0,0.000946]
[1718097392314,2.04298458,67508.0,67501.0,0.000946]
[1718097392524,2.18730451,67508.0,67501.0,0.000946]
[1718097392731,2.17330451,67508.0,67501.0,0.000946]
[1718097392947,2.18730451,67508.0,67501.0,0.000946]
[1718097393436,2.17330451,67508.0,67501.0,0.000946]
[1718097393592,2.21692451,67508.0,67501.0,0.000946]
[1718097394030,2.21692073,67508.0,67501.0,0.000946]
[1718097394285,2.20292073,67508.0,67501.0,0.000946]
[1718097394508,2.21692073,67508.0,67501.0,0.000946]
[1718097394739,2.23092073,67508.0,67501.0,0.000946]
[1718097394955,2.21692073,67508.0,67501.0,0.000946]
[1718097395159,2.12607675,67508.0,67501.0,0.000946]
[1718097395376,2.21692155,67508.0,67501.0,0.000946]
[1718097396024,2.23092155,67508.0,67501.0,0.000946]
[1718097396235,2.13227975,67508.0,67501.0,0.000946]
[1718097396451,2.22941128,67508.0,67501.0,0.000946]
[1718097396906,2.16308757,67508.0,67501.0,0.000946]
[1718097397311,2.25152179,67508.0,67501.0,0.000946]
[1718097397516,2.31844922,67508.0,67501.0,0.000946]
[1718097398124,2.2300176,67508.0,67501.0,0.000946]
[1718097398394,2.3184395,67508.0,67501.0,0.000946]
[1718097399257,1.18135828,67507.0,67506.0,0.00183999]
[1718097399466,1.92233057,67507.0,67506.0,0.00183999]
[1718097399672,1.93532817,67507.0,67506.0,0.00183999]
[1718097400553,2.02112817,67507.0,67506.0,0.00183999]
[1718097400760,2.03512817,67507.0,67506.0,0.00183999]
[1718097400918,2.03513511,67507.0,67506.0,0.00183999]
[1718097401545,2.04913511,67507.0,67506.0,0.00183999]
[1718097401942,2.52094245,67507.0,67506.0,0.00183999]
[1718097402345,2.75257177,67507.0,67506.0,0.00183999]
[1718097402592,1.55550628,67502.0,67501.0,0.000946]
[1718097402880,3.4158525,67502.0,67501.0,0.000946]
[1718097403094,3.51107343,67502.0,67501.0,0.000946]
[1718097403297,3.57074997,67502.0,67501.0,0.000946]
[1718097403497,3.5837425,67502.0,67501.0,0.000946]
[1718097404018,3.5977425,67502.0,67501.0,0.000946]
[1718097404640,3.6117425,67502.0,67501.0,0.000946]
[1718097405230,3.56751801,67502.0,67501.0,0.000946]
[1718097406928,3.6337181,67502.0,67501.0,0.000946]
[1718097407766,3.56736014,67502.0,67501.0,0.000946]
[1718097408386,3.65583742,67502.0,67501.0,0.000946]
[1718097408858,3.45583742,67502.0,67501.0,0.000946]
[1718097409063,3.65583742,67502.0,67501.0,0.000946]
[1718097409393,3.45583742,67502.0,67501.0,0.000946]
[1718097409514,3.56736014,67502.0,67501.0,0.000946]
[1718097410133,3.46736014,67502.0,67501.0,0.000946]
[1718097410337,3.36628386,67502.0,67501.0,0.000946]
[1718097410541,3.46688046,67502.0,67501.0,0.266746]
[1718097410927,3.45486164,67502.0,67501.0,0.266746]
[1718097411534,3.36517349,67502.0,67501.0,0.266746]
[1718097414605,3.27937349,67502.0,67501.0,0.266746]
[1718097414782,3.36517349,67502.0,67501.0,0.266746]
[1718097415590,3.42444949,67502.0,67501.0,0.266746]
[1718097415953,3.32444949,67502.0,67501.0,0.266746]
[1718097416158,3.28012956,67502.0,67501.0,0.266746]
[1718097417085,3.280061,67502.0,67501.0,0.266746]
[1718097417528,3.270061,67502.0,67501.0,0.266746]
[1718097418367,3.280061,67502.0,67501.0,0.266746]
[1718097418990,3.28113728,67502.0,67501.0,0.092246]
[1718097419193,3.48113728,67502.0,67501.0,0.092246]
[1718097419401,3.47756378,67502.0,67501.0,0.092246]
[1718097419825,3.47756378,67502.0,67501.0,0.000946]
[1718097420496,3.47756378,67502.0,67493.0,0.00834654]
[1718097420497,1.85188128,67494.0,67493.0,0.00834654]
[1718097420721,0.6,67473.0,67472.0,0.009427]
[1718097420927,1.02144535,67473.0,67472.0,0.009427]
[1718097421147,1.13024535,67473.0,67472.0,0.009427]
[1718097421352,1.3061002,67473.0,67472.0,0.009427]
[1718097422236,1.23917277,67473.0,67472.0,0.009427]
[1718097422439,1.26862482,67473.0,67472.0,0.009427]
[1718097422887,1.26462482,67473.0,67472.0,0.009427]
[1718097423106,1.25462482,67473.0,67472.0,0.009427]
[1718097423960,1.34505198,67473.0,67472.0,0.009427]
[1718097424203,1.35905198,67473.0,67472.0,0.009427]
[1718097424419,1.33689071,67473.0,67472.0,0.009427]
[1718097425257,1.5761151,67473.0,67472.0,0.009427]
[1718097425438,1.60638099,67473.0,67472.0,0.009427]
[1718097425706,1.62038099,67473.0,67472.0,0.009427]
[1718097425945,1.65654226,67473.0,67472.0,0.009427]
[1718097426159,1.86227506,67473.0,67472.0,0.009427]
[1718097426383,2.13334454,67473.0,67472.0,0.009427]
[1718097426594,2.28184041,67473.0,67472.0,0.009427]
[1718097426810,2.4826676,67473.0,67472.0,0.009427]
[1718097427020,2.6826676,67473.0,67472.0,0.009427]
[1718097427656,2.6966676,67473.0,67472.0,0.009427]
[1718097427870,2.81298753,67473.0,67472.0,0.009427]
[1718097428078,2.82698753,67473.0,67472.0,0.009427]
[1718097428277,2.90728888,67473.0,67472.0,0.009427]
[1718097428452,2.84098753,67473.0,67472.0,0.009427]
[1718097428687,2.92948295,67473.0,67472.0,0.009427]
[1718097428899,2.94760707,67473.0,67472.0,0.009427]
[1718097429294,2.85911165,67473.0,67472.0,0.009427]
[1718097430331,2.92536834,67473.0,67472.0,0.009427]
[1718097430945,2.39491217,67473.0,67472.0,0.009427]
[1718097431157,2.39491217,67473.0,67472.0,0.269527]
[1718097431375,2.32865548,67473.0,67472.0,0.269527]
[1718097431579,2.33865548,67473.0,67472.0,0.269527]
[1718097431885,2.32465548,67473.0,67472.0,0.269527]
[1718097432102,2.35373176,67473.0,67472.0,0.269527]
[1718097432329,2.33973176,67473.0,67472.0,0.269527]
[1718097432531,2.35373176,67473.0,67472.0,0.269527]
[1718097432941,2.32411176,67473.0,67472.0,0.269527]
[1718097433234,2.27684045,67473.0,67472.0,0.269527]
[1718097433438,2.35264692,67473.0,67472.0,0.269527]
[1718097433858,2.41194792,67473.0,67472.0,0.269527]
[1718097434316,2.6130242,67473.0,67472.0,0.269527]
[1718097434534,2.34609044,67473.0,67472.0,0.097427]
[1718097434752,2.60827749,67473.0,67472.0,0.097427]
[1718097435603,2.75259742,67473.0,67472.0,0.009427]
[1718097435813,2.55259742,67473.0,67472.0,0.009427]
[1718097437114,2.55238494,67473.0,67472.0,0.009427]
[1718097439520,2.60806501,67473.0,67472.0,0.009427]
[1718097439943,2.40806501,67473.0,67472.0,0.009427]
[1718097440147,2.60806501,67473.0,67472.0,0.009427]
[1718097443690,2.507763,67473.0,67472.0,0.009427]
[1718097443902,2.54591458,67473.0,67472.0,0.009427]
[1718097444117,2.79032739,67473.0,67472.0,0.009427]
[1718097444350,2.79032739,67473.0,67455.0,0.009427]
[1718097444351,0.85932028,67456.0,67455.0,0.009427]
[1718097444610,2.38825415,67456.0,67455.0,0.009427]
[1718097444832,2.51952666,67456.0,67455.0,0.103427]
[1718097445052,1.53331553,67456.0,67455.0,0.278827]
[1718097445283,0.83405872,67456.0,67455.0,0.278827]
[1718097445730,0.8106133,67456.0,67455.0,0.278827]
[1718097445946,0.8246133,67456.0,67455.0,0.28775072]
[1718097446218,0.8106133,67456.0,67455.0,0.28775072]
[1718097446437,0.88750141,67456.0,67455.0,0.278827]
[1718097447289,0.90150141,67456.0,67455.0,0.278827]
[1718097447498,0.91550141,67456.0,67455.0,0.278827]
[1718097447918,0.91550141,67456.0,67455.0,0.28775072]
[1718097448346,0.41550141,67456.0,67455.0,0.37355072]
[1718097448550,0.41550141,67456.0,67455.0,0.38355072]
[1718097448551,0.3386133,67456.0,67455.0,0.38355072]
[1718097448978,0.3386133,67456.0,67455.0,0.37355072]
[1718097449192,0.3386133,67456.0,67455.0,0.28775072]
[1718097449406,0.3106133,67456.0,67455.0,0.28775072]
[1718097449827,0.34682489,67456.0,67455.0,0.28775072]
[1718097450048,0.40149327,67456.0,67455.0,0.28775072]
[1718097450913,0.50129327,67456.0,67455.0,0.278827]
[1718097451123,0.64953727,67456.0,67455.0,0.278827]
[1718097451353,0.87368167,67456.0,67455.0,0.278827]
[1718097451983,0.85968167,67456.0,67455.0,0.278827]
[1718097452334,0.87368167,67456.0,67455.0,0.278827]
[1718097452541,0.85968167,67456.0,67455.0,0.278827]
[1718097452745,0.87368167,67456.0,67455.0,0.278827]
[1718097453154,0.85968167,67456.0,67455.0,0.278827]
[1718097453365,0.91525696,67456.0,67455.0,0.278827]
[1718097453776,0.92925696,67456.0,67455.0,0.278827]
[1718097454197,0.92925696,67456.0,67455.0,0.28775072]
[1718097454398,0.84022614,67456.0,67455.0,0.28775072]
[1718097454611,0.77065085,67456.0,67455.0,0.28775072]
[1718097454804,0.78465085,67456.0,67455.0,0.28769793]
[1718097455078,0.84395785,67456.0,67455.0,0.28769793]
[1718097455485,0.91152942,67456.0,67455.0,0.28769793]
[1718097456157,0.69061444,67456.0,67455.0,0.28769793]
[1718097456381,0.62304287,67456.0,67455.0,0.28769793]
[1718097457887,0.68537709,67456.0,67455.0,0.28769793]
[1718097458694,0.62304287,67456.0,67455.0,0.28769793]
[1718097459799,0.68450689,67456.0,67455.0,0.28769793]
[1718097462412,0.68450689,67456.0,67455.0,0.27877421]
[1718097462622,0.77030689,67456.0,67455.0,0.27877421]
[1718097463033,0.67013575,67456.0,67455.0,0.27877421]
[1718097463243,0.67014285,67456.0,67455.0,0.27877421]
[1718097463466,0.74703368,67456.0,67455.0,0.00937421]
[1718097464366,0.79130776,67456.0,67455.0,0.00937421]
[1718097464784,0.77730776,67456.0,67455.0,0.00937421]
[1718097465000,0.79130776,67456.0,67455.0,0.00937421]
[1718097465207,0.77730776,67456.0,67455.0,0.00937421]
[1718097465416,0.73303463,67456.0,67455.0,0.00937421]
[1718097465620,0.74703463,67456.0,67455.0,0.00937421]
[1718097466046,0.64723463,67456.0,67455.0,0.00937421]
[1718097466272,0.73303463,67456.0,67455.0,0.00937421]
[1718097466488,0.74703463,67456.0,67455.0,0.00937421]
[1718097468001,0.83571304,67456.0,67455.0,0.28937421]
[1718097468431,0.81354434,67456.0,67455.0,0.28937421]
[1718097468860,0.74703463,67456.0,67455.0,0.28937421]
[1718097469289,0.81354434,67456.0,67455.0,0.28937421]
[1718097469675,0.74703463,67456.0,67455.0,0.28937421]
[1718097470163,0.81354434,67456.0,67455.0,0.28937421]
[1718097470367,0.81354434,67456.0,67455.0,0.00937421]
[1718097470368,0.91354434,67456.0,67455.0,0.00937421]
[1718097470588,0.84703463,67456.0,67455.0,0.00937421]
[1718097471016,0.95788264,67456.0,67455.0,0.00937421]
[1718097471681,0.95791591,67456.0,67455.0,0.00937421]
[1718097472759,0.93654841,67456.0,67455.0,0.00937421]
[1718097473794,0.93646495,67456.0,67455.0,0.00937421]
[1718097475048,0.93646495,67456.0,67455.0,0.00932137]
[1718097476575,1.25595395,67456.0,67455.0,0.00932137]
[1718097476780,1.04858816,67456.0,67455.0,0.00932137]
[1718097478182,1.02058816,67456.0,67455.0,0.00932137]
[1718097478753,1.04858816,67456.0,67455.0,0.00932137]
[1718097479160,1.02058816,67456.0,67455.0,0.00932137]
[1718097479370,1.03458816,67456.0,67455.0,0.00932137]
[1718097479571,1.04858816,67456.0,67455.0,0.00932137]
[1718097480393,0.83936119,67456.0,67455.0,0.00932137]
[1718097480564,1.04861081,67456.0,67455.0,0.00932137]
[1718097480789,1.01043796,67456.0,67455.0,0.00932137]
[1718097481002,1.06343577,67456.0,67455.0,0.00932137]
[1718097482040,1.17428237,67456.0,67455.0,0.00932137]
[1718097482905,1.08848237,67456.0,67455.0,0.00932137]
[1718097483178,0.86540682,67456.0,67455.0,0.00932137]
[1718097483434,0.86540682,67456.0,67455.0,0.10002137]
[1718097483658,0.86540682,67456.0,67455.0,0.27662137]
[1718097484944,0.76540682,67456.0,67455.0,0.28554509]
[1718097485151,0.86540682,67456.0,67455.0,0.28554509]
[1718097485353,0.76540682,67456.0,67455.0,0.28554509]
[1718097485560,0.86540682,67456.0,67455.0,0.28554509]
[1718097486141,0.86540682,67456.0,67455.0,0.27662137]
[1718097487157,0.86540682,67456.0,67455.0,0.28554509]
[1718097487313,0.75456301,67456.0,67455.0,0.28554509]
[1718097488959,0.75456301,67456.0,67455.0,0.27662137]
[1718097489850,0.74872088,67456.0,67455.0,0.27662137]
[1718097490423,0.74872088,67456.0,67455.0,0.10002137]
[1718097490607,0.74872088,67456.0,67455.0,0.00932137]
[1718097490981,0.74524931,67456.0,67455.0,0.00932137]
[1718097491388,0.85609312,67456.0,67455.0,0.00932137]
[1718097491569,0.8510274,67456.0,67455.0,0.00932137]
[1718097492766,0.8610274,67456.0,67455.0,0.00932137]
[1718097493183,0.86102479,67456.0,67455.0,0.00932137]
[1718097493813,0.85102479,67456.0,67455.0,0.00932137]
[1718097494127,0.61374192,67456.0,67455.0,0.00932137]
[1718097494354,0.85109646,67456.0,67455.0,0.00932137]
[1718097495386,0.74022899,67456.0,67455.0,0.00932137]
[1718097495615,0.85112687,67456.0,67455.0,0.00932137]
[1718097496466,0.74022899,67456.0,67455.0,0.00932137]
[1718097498009,1.49959104,67456.0,67455.0,0.00932137]
[1718097498216,1.79729104,67456.0,67455.0,0.00932137]
[1718097499020,1.78329104,67456.0,67455.0,0.00932137]
[1718097499221,1.76929104,67456.0,67455.0,0.00932137]
[1718097499421,1.78329959,67456.0,67455.0,0.00932137]
[1718097499850,1.77329959,67456.0,67455.0,0.00932137]
[1718097500072,1.78729959,67456.0,67455.0,0.00932137]
[1718097500274,1.79729959,67456.0,67455.0,0.00932137]
[1718097500604,1.88458887,67456.0,67455.0,0.00932137]
[1718097500777,1.87058887,67456.0,67455.0,0.00932137]
[1718097500975,1.78478887,67456.0,67455.0,0.00932137]
[1718097501188,1.88458887,67456.0,67455.0,0.00932137]
[1718097501393,1.87058887,67456.0,67455.0,0.00932137]
[1718097501749,1.90778684,67456.0,67455.0,0.00932137]
[1718097501979,1.90864684,67456.0,67455.0,0.00932137]
[1718097502237,2.05296677,67456.0,67455.0,0.00932137]
[1718097502816,1.96716677,67456.0,67455.0,0.00932137]
[1718097503011,1.90864684,67456.0,67455.0,0.00932137]
[1718097503216,1.83174523,67456.0,67455.0,0.00932137]